Cogmind - Beta 15 @@@ ROGUE MODE // 2025.05.09 @ 22:50:22 Player: CONM Result: Destroyed by UW-HGI(R) with Subdweller Laser Performance ------------- Evolutions (0) 0 Regions Visited (3) 600 Robots Destroyed (9) 45 Value Destroyed (234) 234 Prototype IDs (0) 0 Alien Tech Used (0) 0 Bonus (-3) -3 TOTAL SCORE: 876 Bonus ------- Follower Combat Kills 60 Friendly Fire -63 Cogmind --------- Core Integrity 0/250 Matter 232/300 Energy 92/100 System Corruption 0% Temperature Cool (6) Movement Core (50) Location -10/Subcaves Parts ------- > --- POWER (1) -------- (None) > --- PROPULSION (2) --- (None) > --- UTILITY (2) ------ (None) > --- WEAPON (2) ------- (None) > --- INVENTORY (5) ---- Light Ion Engine Compact Wheel Scrap Suit Signal Interpreter Peak State ------------ > --- POWER ------------ Light Nuclear Core > --- PROPULSION ------- Wheel Compact Wheel > --- UTILITY ---------- Huge Storage Unit Improved Terrain Scanner > --- WEAPON ----------- Assault Rifle Grenade Launcher > --- INVENTORY -------- Light Ion Engine Light Treads Light Treads Scrap Suit Small Storage Unit Sensor Array Signal Interpreter Terrain Scanner Sensor Drone Bay [Rating: 13] Favorites ----------- Power Light Ion Engine Engine Light Ion Engine Power Core Light Nuclear Core Propulsion Wheel Treads Light Treads Wheel Wheel Utility Improved Terrain Scanner Device Improved Terrain Scanner Storage Huge Storage Unit Processor Tech Extrapolator Weapon Assault Rifle Energy Gun EM Pulse Gun Ballistic Gun Assault Rifle Launcher Grenade Launcher Build | -11 -10 -10 -10 ------- Run | Yrd Mat Min Sub Slots Evolved . | . . . . Power . | . . . . Propulsion . | . . . . Utility . | . . . . Weapon . | . . . . Parts Attached 16 | 6 4 3 3 Power 4 | 1 . 2 1 Engine 3 | 1 . 1 1 Core 1 | . . 1 . Reactor . | . . . . Propulsion 5 | 2 2 1 . Treads 2 | 2 . . . Leg . | . . . . Wheel 3 | . 2 1 . Hover . | . . . . Flight . | . . . . Utility 4 | 2 1 . 1 Device 1 | 1 . . . Storage 2 | 1 1 . . Processor 1 | . . . 1 Hackware . | . . . . Protection . | . . . . Artifact . | . . . . Weapon 3 | 1 1 . 1 Energy Gun 1 | . . . 1 Energy Cannon . | . . . . Ballistic Gun 1 | 1 . . . Ballistic Cannon . | . . . . Launcher 1 | . 1 . . Special Weapon . | . . . . Impact Weapon . | . . . . Slashing Weapon . | . . . . Piercing Weapon . | . . . . Special Melee Weapon . | . . . . Unidentified Prototypes . | . . . . Parts Lost 7 | . . 2 5 Power 2 | . . 1 1 Propulsion 2 | . . 1 1 Utility 1 | . . . 1 Weapon 2 | . . . 2 Highest Loss Streak 3 | . . 2 3 To Critical Strikes . | . . . . Average Backups 6 | 2 3 7 9 Power . | . 1 . 1 Propulsion 1 | 1 2 2 1 Utility 3 | . . 4 6 Weapon . | . . . . Tool/Special . | . . . . Unused Backups 5 | . . . 5 Power . | . . . . Propulsion . | . . . . Utility 5 | . . . 5 Weapon . | . . . . Tool/Special . | . . . . Average Slot Usage (%) 98 | . 96 98 96 Engine 8 | . 14 9 3 Core 4 | . . 4 10 Treads 5 | . 25 . 5 Wheel 21 | . 2 27 22 Device 14 | . 14 14 14 Storage 14 | . 14 14 14 Ballistic Gun 13 | . 14 14 13 Launcher 13 | . 11 14 13 Peak Build Rating 13 | 8 9 13 13 Average Rating 9 | 5 8 10 12 On Entrance 7 | . 8 9 13 Naked Turns 4 | . . . 4 Heaviest Build 91 | 11 89 91 91 Greatest Support 40 | 40 40 26 40 Greatest Overweight (x) 9 | . 3 9 5 Average Overweight (x) 2 | . . 3 2 Largest Inventory Capacity 25 | 8 25 25 25 Average Capacity 20 | 7 9 25 24 Most Carried 11 | 3 6 10 11 Average Carried 7 | 2 3 8 9 Final Capacity 25 | 8 25 25 5 Final Carried 10 | 3 6 10 5 Class Distribution -------------------- 100% | Mutant Dominant Class ---------------- Mutant | -10/Materials Mutant | -10/Mines Mutant | -10/Subcaves Resources | -11 -10 -10 -10 ----------- Run | Yrd Mat Min Sub Matter Collected 543 | 288 116 116 23 Remotely . | . . . . Salvage Created 225 | 46 70 53 56 Parts 18 | 8 4 2 4 Haulers Intercepted . | . . . . Recyclers Shooed . | . . . . Parts Field Recycled . | . . . . Retrieved Matter . | . . . . Parts Self-Destructed 4 | . . . 4 Prevented . | . . . . Kills | -11 -10 -10 -10 ------- Run | Yrd Mat Min Sub Combat Hostiles Destroyed 5 | . 2 1 2 Guns 3 | . . 1 2 AOE 2 | . 2 . . Classes Destroyed 5 | 1 2 . 2 Builder 1 | . 1 . . Tunneler 3 | 3 . . . Grunt 3 | . 2 1 . Subdweller 2 | . . . 2 Scientist 1 | . . . 1 Best Kill Streak 2 | 1 2 1 2 Combat Bots Only 2 | . 2 1 2 Max Kills in Single Turn 1 | 1 1 1 1 Gunslinging . | . . . . Exploded 1 | . 1 . . Melee . | . . . . Uniques/NPCs Destroyed . | . . . . Combat | -11 -10 -10 -10 -------- Run | Yrd Mat Min Sub Hostile Shots Fired 46 | . 10 12 24 Missed 8 | . . 4 4 Hits 38 | . 10 8 20 Projectile 38 | . 10 8 20 Critical Strikes 1 | . . 1 . Damage Taken 766 | . 150 127 489 Core 254 | . 42 . 212 Absorbed by Shields . | . . . . Core Remaining (%) 100 | 100 . . . Volleys Fired 62 | 15 11 22 14 Largest 2 | 1 1 1 2 Hottest 50 | 20 30 20 50 Shots Fired 64 | 15 11 22 16 Gun 52 | 15 3 22 12 Cannon . | . . . . Launcher 12 | . 8 . 4 Special . | . . . . Kinetic 47 | 15 3 22 7 Thermal . | . . . . Explosive 12 | . 8 . 4 Electromagnetic 5 | . . . 5 Robot Hit Streak 11 | 3 4 9 11 Robot Miss Streak 3 | 3 1 2 1 Penetration Max . | . . . . Secondary Targets . | . . . . Shots Hit Robots 44 | 10 5 18 11 Core Hits 19 | 3 5 5 6 Critical Kills . | . . . . Critical Parts Destroyed 1 | 1 . . . Critical Strikes 1 | 1 . . . Destroy 1 | 1 . . . Melee Attacks . | . . . . Impact . | . . . . Slashing . | . . . . Piercing . | . . . . Sneak Attacks . | . . . . Combat Hostiles . | . . . . Follow-up Attacks . | . . . . Damage Inflicted 1001 | 139 253 222 387 Guns 499 | 139 25 222 113 Cannons . | . . . . Explosions 502 | . 228 . 274 Melee . | . . . . Ramming . | . . . . Kinetic 456 | 139 25 222 70 Thermal . | . . . . Explosive 502 | . 228 . 274 Electromagnetic 43 | . . . 43 Impact . | . . . . Slashing . | . . . . Piercing . | . . . . Highest Corruption . | . . . . Average Corruption . | . . . . Corruption Purged . | . . . . Corruption Blocked . | . . . . Overload Shots . | . . . . Overflow Damage 3 | . . . 3 Projectiles . | . . . . Explosions 3 | . . . 3 Melee . | . . . . Knockbacks . | . . . . Impact . | . . . . Kinetic . | . . . . Secondary . | . . . . Self-Inflicted Damage 72 | . 19 . 53 Shots 3 | . 1 . 2 Rammed . | . . . . Targets Rammed . | . . . . Kicked . | . . . . Crushed . | . . . . Highest Temperature 17 | . 10 17 . Average Temperature 5 | . 4 10 . Received Heat Transfer 291 | . 75 90 126 Siege Activations . | . . . . Martial Activations . | . . . . Shielding Activations . | . . . . Robots Disrupted . | . . . . Combat Hostiles . | . . . . Robots Corrupted . | . . . . Combat Hostiles . | . . . . Parts Fried . | . . . . Impact Corruptions . | . . . . Robots Melted . | . . . . Combat Hostiles . | . . . . Parts Melted . | . . . . Heat Transferred . | . . . . Parts Sabotaged . | . . . . Parts Stolen . | . . . . Parts Stripped . | . . . . Power Chain Reactions . | . . . . Alert | -11 -10 -10 -10 ------- Run | Yrd Mat Min Sub Maximum Alert Level . | . . . . Low Security (%) 100 | 100 100 100 . Level 1 . | . . . . Level 2 . | . . . . Level 3 . | . . . . Level 4 . | . . . . Level 5 . | . . . . High Security . | . . . . Max Security . | . . . . Peak Influence 74 | 5 74 58 . Initial 7 | . . 7 . Average 10 | . 29 8 . Influence Increases 213 | 15 90 108 . Destroy 0b10 Robot/C 100 | . 40 60 . Destroy 0b10 Robot/NC 20 | 15 5 . . Destroy Leader 30 | . 10 20 . Allied During Kill 13 | . . 13 . Destroy Structure 35 | . 35 . . Lose Combat Pursuer 15 | . . 15 . Influence Decreases 213 | 15 70 128 . Entered New Map 13 | . . 13 . Time Decay 200 | 15 70 115 . Squads Dispatched . | . . . . Investigation . | . . . . Extermination . | . . . . Reinforcement . | . . . . Assault . | . . . . Garrison . | . . . . Intercept . | . . . . Searches Triggered . | . . . . Construction Impeded . | . . . . Haulers Reinforced . | . . . . Active Scanning Responses . | . . . . Cargo Convoy Interrupts . | . . . . Stealth | -11 -10 -10 -10 --------- Run | Yrd Mat Min Sub Distress Signals 1 | . 1 . . Communications Jammed . | . . . . Distress Signals . | . . . . Times Spotted 13 | . 5 4 4 Peak Tracking Total 5 | . 5 2 2 Tactical Retreats 1 | . . 1 . Traps | -11 -10 -10 -10 ------- Run | Yrd Mat Min Sub Traps Triggered . | . . . . Indirectly . | . . . . Trap Hack Attempts . | . . . . Triggered . | . . . . Disarmed . | . . . . Reprogrammed . | . . . . Reused . | . . . . Traps Extracted . | . . . . Installed . | . . . . Triggered . | . . . . Machines | -11 -10 -10 -10 ---------- Run | Yrd Mat Min Sub Machines Disabled . | . . . . Max in Single Turn . | . . . . Machines Repaired . | . . . . Machines Dismantled . | . . . . Machines Sabotaged . | . . . . Overloaded Fab Kills . | . . . . Hacking | -11 -10 -10 -10 --------- Run | Yrd Mat Min Sub Machines Accessed 1 | . . 1 . Terminals . | . . . . Fabricators . | . . . . Repair Stations . | . . . . Recycling Units . | . . . . Scanalyzers . | . . . . Garrison Access . | . . . . Total Hacks 1 | . . 1 . Successful 1 | . . 1 . Failed . | . . . . Catastrophic . | . . . . Database Lockouts . | . . . . Manual . | . . . . Terminals . | . . . . Fabricators . | . . . . Repair Stations . | . . . . Recycling Units . | . . . . Scanalyzers . | . . . . Garrison Access . | . . . . Terminal Hacks 1 | . . 1 . Open Door 1 | . . 1 . Fabricator Hacks . | . . . . Repair Station Hacks . | . . . . Recycling Unit Hacks . | . . . . Scanalyzer . | . . . . Garrison Access Hacks . | . . . . Unauthorized Hacks . | . . . . Terminals . | . . . . Fabricators . | . . . . Repair Stations . | . . . . Recycling Units . | . . . . Scanalyzers . | . . . . Garrison Access . | . . . . Data Cores Recovered . | . . . . Used . | . . . . Hacking Detections . | . . . . Full Trace Events . | . . . . Feedback Events . | . . . . Feedback Blocked . | . . . . Robot Schematics Acquired . | . . . . Robots Built . | . . . . Authchips . | . . . . Time . | . . . . Total Robot Build Rating . | . . . . Part Schematics Acquired . | . . . . Parts Built . | . . . . Authchips . | . . . . Time . | . . . . Total Part Build Rating . | . . . . Parts Repaired . | . . . . Time . | . . . . Parts Recycled . | . . . . Recycled Matter . | . . . . Retrieved Matter . | . . . . Retrieved Components . | . . . . Parts Scanalyzed . | . . . . Part Schematics Acquired . | . . . . Parts Damaged . | . . . . Bothacking | -11 -10 -10 -10 ------------ Run | Yrd Mat Min Sub Used RIF Installer . | . . . . Robots Hacked . | . . . . Non-combat . | . . . . Combat . | . . . . Robot Hacks Applied . | . . . . Relay Couplers Released . | . . . . Fabnet Peak Effective % . | . . . . Robots Rewired . | . . . . Allies Hacked . | . . . . Hacks Repelled . | . . . . Allies | -11 -10 -10 -10 -------- Run | Yrd Mat Min Sub Total Allies 3 | . . 3 . Largest Group 3 | . . 3 3 Highest-Rated Group 40 | . . 40 40 Highest-Rated Ally 16 | . . 16 16 Total Orders . | . . . . Ally Attacks 33 | . . 19 14 Total Damage 361 | . . 183 178 Kills 2 | . . 2 . Allies Corrupted . | . . . . Allies Melted . | . . . . Intel | -11 -10 -10 -10 ------- Run | Yrd Mat Min Sub Active Infowar (turns) 1373 | 51 236 822 264 Terrain 1373 | 51 236 822 264 Robot Analysis Total . | . . . . Derelict Logs Recovered 1 | . . 1 . Drone Launches . | . . . . Drone Recoveries . | . . . . Exploration | -11 -10 -10 -10 ------------- Run | Yrd Mat Min Sub Turns Passed 1566 | 239 236 822 269 Spaces Moved 952 | 125 131 536 160 Core 11 | 4 . . 7 Treads 245 | 121 114 . 10 Legs . | . . . . Wheels 696 | . 17 536 143 Hover . | . . . . Flight . | . . . . Fastest Speed 50 | 50 135 135 50 Average Speed 143 | 156 156 137 143 Slowest Speed 320 | 160 160 215 320 Overloaded Moves . | . . . . Propulsion Burnouts . | . . . . Robots Hopped . | . . . . Potential Cave-ins . | . . . . Cave-ins Triggered . | . . . . Exploration Rate (%) 31 | 5 25 79 17 Regions Visited 3 Branch Regions 2 Pre-discovered Areas 1 | . . 1 . Known Exits Taken 1 | . . 1 . Unknown Exits Taken 2 | 1 1 . . Scrap Searched 1 | . . 1 . Spaces Dug . | . . . . Terrain Destroyed 80 | . 57 . 23 Melee . | . . . . Projectile . | . . . . AOE 80 | . 57 . 23 Terrain Rammed . | . . . . Walls Destroyed . | . . . . Machines Disabled . | . . . . Actions | -11 -10 -10 -10 --------- Run | Yrd Mat Min Sub Total 1078 | 151 149 597 181 Wait 39 | 3 1 34 1 Move 949 | 124 130 535 160 Hop . | . . . . Pick Up 10 | 3 3 3 1 Fast Attach 9 | 6 . 1 2 Attach 4 | . 1 1 2 Detach . | . . . . Swap 5 | . 3 1 1 Drop . | . . . . Fire 62 | 15 11 22 14 Melee . | . . . . Ram . | . . . . Kick . | . . . . Crush . | . . . . Escape Stasis . | . . . . Rewire . | . . . . Trap . | . . . . Miscellaneous . | . . . . Route ------- -11/Scrapyard -10/Materials (discovered 2 exits: *Min x2) -10/Mines (discovered 3 exits: [*Mat x2] / *Sub) -10/Subcaves History --------- Turn | Location | Event 7 | -11/Scrapyard | Discovered new exit (range 16) 240 | -11/Scrapyard | Entered Materials 240 | -10/Materials | Discovered new exit (range 14) 301 | -10/Materials | Build established: Mutant 447 | -10/Materials | Discovered new exit (range 15) 476 | -10/Materials | Entered Mines 509 | -10/Mines | Discovered new exit (range 15) 557 | -10/Mines | Found a Scrap Suit stashed away for nefarious purposes 560 | -10/Mines | Found Scrap Suit 596 | -10/Mines | Assisted by bots powering up and referring to "LRC-V3" 816 | -10/Mines | Discovered new exit (range 8) 862 | -10/Mines | Learned location of Storage (-7) 1089 | -10/Mines | Found the Drone Emporium 1094 | -10/Mines | Found Prototype Device 1180 | -10/Mines | Identified exit to Subcaves 1298 | -10/Mines | Entered Subcaves 1298 | -10/Subcaves | Accompanied by 3 allies 1299 | -10/Subcaves | Approached by a straggling Scientist 1470 | -10/Subcaves | Ambushed by Subdwellers from Twisted Machinery 1520 | -10/Subcaves | Lost 3 allies 1544 | -10/Subcaves | Core integrity fell below 50% 1562 | -10/Subcaves | Released all parts (6) 1566 | -10/Subcaves | Core integrity fell below 20% 1567 | -10/Subcaves | Destroyed by UW-HGI(R) with Subdweller Laser Last Messages --------------- 01507_ Subatomizers dissect the Lgt. Nuclear Core, destroying it. 01509_ Acquired Sub. Power Source. 01528_ The unstable cave ceiling collapses. 01532_ Subatomizers dissect the Imp. Heat Sink. 01545_ ZS-TQZ(c) destroyed. 01548_ Assault Rifle destroyed. 01549_ Grenade Launcher destroyed. 01554_ The unstable cave ceiling collapses. 01557_ Subatomizers dissect the Imp. Heat Sink. 01562_ Released Lgt. Treads. 01562_ Released Sub. Power Source. 01562_ Released Imp. Terrain Scanner. 01562_ Released Huge Storage Unit. 01562_ Released Lgt. Treads. 01562_ Released EM Pulse Gun. 01563_ UW-HGI(R) affixes Scrap Shield Fragment to Scrap Shield. 01563_ Acquired 6 matter. 01564_ Acquired Tech Extrapolator. 01565_ Tech Extrapolator violently self-destructs. Map ----- +----------------------------------------------------+ | ?????????????????????????????????????????????????? | | ?????????????????????????????????????????????????? | | ?????????????????????????????????????????????????? | | ?????????????????????????????????????????????????? | | ?????????????????????????????????????????????????? | | ?????????????????????????????????????????????????? | | ?????????????????????????????????????????????????? | | ?????????????????????????????????????????????????? | | ?????? ?????????????????????????????????????????? | | ????? ?????????????????????????????????????????? | | ?????? ???#????????#?????###???????????????????? | | ??????? ###?#??????????#?? ##?????????????????? | | ???? ????#?????????# ##????????????????? | | ?? ##???#???????## ###??????????????? | | ?# ##??????????# #???????????????? | | ?# ? #??????????? ????????????????? | | ?# ?# #???#???#??? #???????#????????? | | ???# ## #?????##???? #????????????????? | | #????# ## ##??## ##??? ????#????????????? | | #???## ### #?#?# ??????????????????? | | ##### #???# #??????????????????? | | ## ## ##??## #???????"??????????? | | ## ## #####??# #???????????"??????? | | ## ?#??# ## #### #???????#??????????? | | ##?????# ## =![#?#????????????????? | | ####### %*%!% @ !=*#???????#??????????? | | ### = *%R R * !!!#????#?????"???????? | | ## ## ! #??#???????????????? | | ## ####; # " ##??????????"???????? | | #??## # ####" ###???????????????????? | | ##??# #####??#" #?????????????????????? | | ##???# #??????"" #?????????????????????? | | ###???# ?#???""" #?????????????????????? | | ## ##?????# ??????""" ?????????????????????? | | ### #?#???? ##??????#"" ?????????????????????? | | ?? ##????? ????"???#"" ?????????????????????? | | ? #?????? ??????????? ????????????????????? | | #????? ##???????? ???????????????????? | | ??? ?????? ????##??????#?????????????? | | ??? ?????? ??????????????????????????? | | ??? ##?????????????????????????????????? | | ### ??? #??????? ???????????????????????????? | | ??# ????? ????????????????????????????????????? | | ?? ?????????????????????????????????????????? | | ?? ## ?????????????????????????????????????????? | | ??###?#??????????????????????????????????????????? | | ?????????????????????????????????????????????????? | | ?????????????????????????????????????????????????? | | ?????????????????????????????????????????????????? | | ?????????????????????????????????????????????????? | +----------------------------------------------------+ Best States ------------- Heat Dissipation 25 Energy Generation 15 Energy Capacity 200 Matter Stores 300 Matter Capacity 300 Sight Range 16 Terrain Scan Range 16 Terrain Scan Density 10 Evasion (%) 40 Recoil Reduction 2 Item Schematics ----------------- None Robot Schematics ------------------ None Fabricated ------------ Nothing Repaired ---------- Nothing Alien Tech Used ----------------- None Achievements -------------- None Challenges ------------ None Game ------ Seed InsulationNetworkRipteeth Manual? 0 Play Time 00:14:30 Cumulative 131.3 hours Start 2025.05.09 @ 03:09:32 End 2025.05.09 @ 22:50:22 Sessions 1 Manual Loads 0 Difficulty Rogue Special Mode None Game No. 154 Rogue 154 Adventurer 0 Explorer 0 Win Type - Total 0 Types 0/0/0/0/0/0/0/0/0/0 Lore% 50 Gallery% 44 Achievement% 44 Wizard Run 0 Options --------- Layout 0 ASCII 0 Keyboard 0 Movement Arrows Keybinds 0 Fullscreen 1 Font 20/SmallcapsGlow Map View 66x50 Zoom Use 0% Tactical HUD 1 Map Filters NONE Filters NONE Steam 1 RUN: 3572d11f-1e44-489b-9149-2cd957ada2f1